{"text_format":"1","workbook":"xlsx","n_sheets":5,"sheets":["FALLECIMIENTO","ACCIDENTES","PRESUNTOS_HECHOS_DE_VIOLENCIAS","TR","PORTADA"],"not_rendered":{"charts":0,"images":3,"macros":1,"external_links":0,"defined_names":3,"comments":0,"pivot_tables":0},"unopened":[],"bounds":{"document_bytes":16777216,"sheet_cells":100000,"rows_first":2000,"rows_last":500,"rows_between":2000,"halvings":0,"cell_chars":16384,"cell_head_chars":4096},"cells_cut":0,"cells_raw":0,"read":"whole","date_system":"1900"}

{"sheet":"FALLECIMIENTO","index":0,"n_rows":30,"n_cols":25,"rows_kept":30,"cut":false,"hidden":false,"merged":[[11,7,11,8],[0,1,2,3],[0,4,2,22],[2,23,2,24],[3,7,3,8],[4,7,4,8],[5,7,5,8],[6,7,6,8],[7,7,7,8],[8,7,8,8],[9,7,9,8],[10,7,10,8],[23,7,23,8],[12,7,12,8],[13,7,13,8],[14,7,14,8],[15,7,15,8],[16,7,16,8],[17,7,17,8],[18,7,18,8],[19,7,19,8],[20,7,20,8],[21,7,21,8],[22,7,22,8],[29,1,31,24],[24,7,24,8],[25,7,25,8],[26,7,26,8],[27,7,27,8],[28,7,28,8]]}
[null,null,null,null,"PROCESO\nPROMOCIÓN Y PREVENCIÓN\n\nFORMATO REPORTE PRESUNTOS HECHOS DE VIOLENCIA, ACCIDENTES Y FALLECIMIENTOS\nMODALIDAD PARA LA PREVENCION DE RIESGOS Y EL DESARROLLO DE CAPACIDADES - ESPACIOS COMUNITARIOS",null,null,null,null,null,null,null,null,null,null,null,null,null,null,null,null,null,null,"F15.XX.XXX","DD/MM/AAAA"]
[null,null,null,null,null,null,null,null,null,null,null,null,null,null,null,null,null,null,null,null,null,null,null,"Versión 1","Página 1 de 1"]
[null,null,null,null,null,null,null,null,null,null,null,null,null,null,null,null,null,null,null,null,null,null,null,"Clasificación de la Información:\nClasificada"]
[null,"No.","NOMBRE DE QUIÉN RELACIONA LA INFORMACIÓN","CARGO DE QUIÉN RELACIONA LA INFORMACIÓN","¿ ES OPERADOR ?","¿ ES TALENTO HUMANO?","5. FECHA DEL REPORTE\n(dd/mm/aaaa)","7. NOMBRE COMPLETO PARTICIPANTE",null,"8. TIPO DE DOCUMENTO","9. NÚMERO DE DOCUMENTO","10. FECHA DE NACIMIENTO\n(dd/mm/aaaa)","11. EDAD\n(con respecto a la fecha de fallecimiento)","12. SEXO","13. MUNICIPIO","14. FECHA DEL INICIO DE LA ATENCIÓN","15. FECHA EN QUE OCURRIÓ EL FALLECIMIENTO\n(dd/mm/aaaa)\n","16. ¿ CUENTA CON CERTIFICADO DE DEFUNCIÓN ?","17. PROBABLE FORMA DE MUERTE\n","18. DESCRIBA LAS CIRCUNSTANCIAS DEL FALLECIMIENTO SI LAS CONOCE","19. ¿EN QUÉ LUGAR OCURRIO EL FALLECIMIENTO?","20. ¿SE ACTIVÓ LA PÓLIZA?","21. QUÉ ACCIONES SE REALIZARON  (antes y después del fallecimiento) POR PARTE DE ICBF","22. SE HA REALIZADO ACOMPAÑAMIENTO PSICOLÓGICOA LA FAMILIA DEL PARTICIPANTE?","23. OBSERVACIONES ADICIONALES QUE PUEDAN SER ÚTILES AL SUPERVISOR(A) "]
[null,null,null,null,null,null,null,null,null,null,null,null,{"$f":"IF(ISBLANK(L5), \"0 años 0 meses y 0 días\", DATEDIF(L5,TODAY(), \"Y\") & \" años \" & DATEDIF(L5,TODAY(), \"YM\") & \" meses y \" & DATEDIF(L5,TODAY(), \"MD\") & \" días\")","v":"0 años 0 meses y 0 días"}]
[null,null,null,null,null,null,null,null,null,null,null,null,{"$f":"IF(ISBLANK(L6), \"0 años 0 meses y 0 días\", DATEDIF(L6,TODAY(), \"Y\") & \" años \" & DATEDIF(L6,TODAY(), \"YM\") & \" meses y \" & DATEDIF(L6,TODAY(), \"MD\") & \" días\")","v":"0 años 0 meses y 0 días"}]
[null,null,null,null,null,null,null,null,null,null,null,null,"0 años 0 meses y 0 días"]
[null,null,null,null,null,null,null,null,null,null,null,null,"0 años 0 meses y 0 días"]
[null,null,null,null,null,null,null,null,null,null,null,null,"0 años 0 meses y 0 días"]
[null,null,null,null,null,null,null,null,null,null,null,null,"0 años 0 meses y 0 días"]
[null,null,null,null,null,null,null,null,null,null,null,null,"0 años 0 meses y 0 días"]
[null,null,null,null,null,null,null,null,null,null,null,null,"0 años 0 meses y 0 días"]
[null,null,null,null,null,null,null,null,null,null,null,null,"0 años 0 meses y 0 días"]
[null,null,null,null,null,null,null,null,null,null,null,null,"0 años 0 meses y 0 días"]
[null,null,null,null,null,null,null,null,null,null,null,null,"0 años 0 meses y 0 días"]
[null,null,null,null,null,null,null,null,null,null,null,null,"0 años 0 meses y 0 días"]
[null,null,null,null,null,null,null,null,null,null,null,null,"0 años 0 meses y 0 días"]
[null,null,null,null,null,null,null,null,null,null,null,null,"0 años 0 meses y 0 días"]
[null,null,null,null,null,null,null,null,null,null,null,null,"0 años 0 meses y 0 días"]
[null,null,null,null,null,null,null,null,null,null,null,null,"0 años 0 meses y 0 días"]
[null,null,null,null,null,null,null,null,null,null,null,null,"0 años 0 meses y 0 días"]
[null,null,null,null,null,null,null,null,null,null,null,null,"0 años 0 meses y 0 días"]
[null,null,null,null,null,null,null,null,null,null,null,null,"0 años 0 meses y 0 días"]
[null,null,null,null,null,null,null,null,null,null,null,null,"0 años 0 meses y 0 días"]
[null,null,null,null,null,null,null,null,null,null,null,null,"0 años 0 meses y 0 días"]
[null,null,null,null,null,null,null,null,null,null,null,null,"0 años 0 meses y 0 días"]
[null,null,null,null,null,null,null,null,null,null,null,null,"0 años 0 meses y 0 días"]
[null,null,null,null,null,null,null,null,null,null,null,null,"0 años 0 meses y 0 días"]
[null,null,null,null,null,null,null,null,null,null,null,null,"0 años 0 meses y 0 días"]
[null,"¡Antes de imprimir este documento… piense en el medio ambiente!  \n     Cualquier copia impresa de este documento se considera como COPIA NO CONTROLADA.\nLOS DATOS PROPORCIONADOS SERÁN TRATADOS DE ACUERDO A LA POLÌTICA DE TRATAMIENTO DE DATOS PERSONALES DEL ICBF Y A LA LEY 1581 DE 2012"]

{"sheet":"ACCIDENTES","index":1,"n_rows":29,"n_cols":23,"rows_kept":29,"cut":false,"hidden":false,"merged":[[2,21,2,22],[0,1,2,2],[0,3,2,20],[28,9,30,22]]}
[null,null,null,"PROCESO\nPROMOCIÓN Y PREVENCIÓN\n\nFORMATO REPORTE PRESUNTOS HECHOS DE VIOLENCIA, ACCIDENTES Y FALLECIMIENTOS\nMODALIDAD PARA LA PREVENCION DE RIESGOS Y EL DESARROLLO DE CAPACIDADES - ESPACIOS COMUNITARIOS",null,null,null,null,null,null,null,null,null,null,null,null,null,null,null,null,null,"F15.XX.XXX","DD/MM/AAAA"]
[null,null,null,null,null,null,null,null,null,null,null,null,null,null,null,null,null,null,null,null,null,"Versión ","Página 1 de 1"]
[null,null,null,null,null,null,null,null,null,null,null,null,null,null,null,null,null,null,null,null,null,"Clasificación de la Información:\nClasificada"]
[null,"No.","NOMBRE DE QUIÉN RELACIONA LA INFORMACIÓN","CARGO DE QUIÉN RELACIONA LA INFORMACIÓN","¿ ES OPERADOR ?","¿ ES TALENTO HUMANO?","7. NOMBRE COMPLETO PARTICIPANTE","8. TIPO DE DOCUMENTO","9. NÚMERO DE DOCUMENTO","10. FECHA DE NACIMIENTO\n(dd/mm/aaaa)","11. EDAD\n(con respecto a la fecha del accidente)","12. SEXO","13. MUNICIPIO","14. FECHA DEL INICIO DE LA ATENCIÓN","15. TIPO DE ACCIDENTE","8.1. SI SELECCIONÓ OTRO ¿Cuál?","16. FECHA EN LA QUE OCURRIO EL ACCIDENTE\n(dd/mm/aaaa)\n","17. ¿EN QUÉ LUGAR SE PRESENTO EL ACCIDENTE?","17.1. SI SELECCIONÓ OTRO INDIQUE CUAL","18. ¿SE ACTIVÓ LA PÓLIZA?","19. DESCRIPCIÓN BREVE DE LAS ACCIONES REALIZADAS POR PARTE DE ICBF","20. DESCRIPCIÓN BREVE DE LAS  ACCIONES REALIZADAS POR PARTE DE LA FAMILIA","21. OBSERVACIONES ADICIONALES QUE PUEDAN SER ÚTILES AL SUPERVISOR(A)"]
[null,null,null,null,null,null,null,null,null,null,{"$f":"IF(ISBLANK(J5), \"0 años 0 meses y 0 días\", DATEDIF(J5,TODAY(), \"Y\") & \" años \" & DATEDIF(J5,TODAY(), \"YM\") & \" meses y \" & DATEDIF(J5,TODAY(), \"MD\") & \" días\")","v":"0 años 0 meses y 0 días"}]
[null,null,null,null,null,null,null,null,null,null,"0 años 0 meses y 0 días"]
[null,null,null,null,null,null,null,null,null,null,"0 años 0 meses y 0 días"]
[null,null,null,null,null,null,null,null,null,null,"0 años 0 meses y 0 días"]
[null,null,null,null,null,null,null,null,null,null,"0 años 0 meses y 0 días"]
[null,null,null,null,null,null,null,null,null,null,"0 años 0 meses y 0 días"]
[null,null,null,null,null,null,null,null,null,null,"0 años 0 meses y 0 días"]
[null,null,null,null,null,null,null,null,null,null,"0 años 0 meses y 0 días"]
[null,null,null,null,null,null,null,null,null,null,"0 años 0 meses y 0 días"]
[null,null,null,null,null,null,null,null,null,null,"0 años 0 meses y 0 días"]
[null,null,null,null,null,null,null,null,null,null,"0 años 0 meses y 0 días"]
[null,null,null,null,null,null,null,null,null,null,"0 años 0 meses y 0 días"]
[null,null,null,null,null,null,null,null,null,null,{"$f":"IF(ISBLANK(J17), \"0 años 0 meses y 0 días\", DATEDIF(J17,TODAY(), \"Y\") & \" años \" & DATEDIF(J17,TODAY(), \"YM\") & \" meses y \" & DATEDIF(J17,TODAY(), \"MD\") & \" días\")","v":"0 años 0 meses y 0 días"}]
[null,null,null,null,null,null,null,null,null,null,"0 años 0 meses y 0 días"]
[null,null,null,null,null,null,null,null,null,null,"0 años 0 meses y 0 días"]
[null,null,null,null,null,null,null,null,null,null,"0 años 0 meses y 0 días"]
[null,null,null,null,null,null,null,null,null,null,"0 años 0 meses y 0 días"]
[null,null,null,null,null,null,null,null,null,null,"0 años 0 meses y 0 días"]
[null,null,null,null,null,null,null,null,null,null,"0 años 0 meses y 0 días"]
[null,null,null,null,null,null,null,null,null,null,"0 años 0 meses y 0 días"]
[null,null,null,null,null,null,null,null,null,null,"0 años 0 meses y 0 días"]
[null,null,null,null,null,null,null,null,null,null,"0 años 0 meses y 0 días"]
[null,null,null,null,null,null,null,null,null,null,"0 años 0 meses y 0 días"]
[null,null,null,null,null,null,null,null,null,null,"0 años 0 meses y 0 días"]
[null,null,null,null,null,null,null,null,null,"¡Antes de imprimir este documento… piense en el medio ambiente!  \n     Cualquier copia impresa de este documento se considera como COPIA NO CONTROLADA.\nLOS DATOS PROPORCIONADOS SERÁN TRATADOS DE ACUERDO A LA POLÌTICA DE TRATAMIENTO DE DATOS PERSONALES DEL ICBF Y A LA LEY 1581 DE 2012"]

{"sheet":"PRESUNTOS_HECHOS_DE_VIOLENCIAS","index":2,"n_rows":31,"n_cols":30,"rows_kept":31,"cut":false,"hidden":false,"merged":[[30,1,32,29],[3,5,4,5],[3,6,4,6],[3,7,4,8],[3,9,4,9],[3,10,4,10],[3,16,4,16],[13,7,13,8],[14,7,14,8],[15,7,15,8],[7,7,7,8],[8,7,8,8],[9,7,9,8],[10,7,10,8],[11,7,11,8],[12,7,12,8],[0,1,2,3],[0,4,2,27],[2,28,2,29],[3,17,3,23],[3,24,4,24],[3,25,4,25],[3,26,4,26],[3,27,4,27],[3,28,4,28],[3,29,4,29],[3,1,4,1],[3,2,4,2],[3,3,4,3],[3,4,4,4],[3,14,4,14],[3,15,4,15],[5,7,5,8],[6,7,6,8],[3,11,4,11],[3,12,4,12],[3,13,4,13],[19,7,19,8],[20,7,20,8],[21,7,21,8],[16,7,16,8],[17,7,17,8],[18,7,18,8]]}
[null,null,null,null,"PROCESO\nPROMOCIÓN Y PREVENCIÓN\n\nFORMATO REPORTE PRESUNTOS HECHOS DE VIOLENCIA, ACCIDENTES Y FALLECIMIENTOS\nMODALIDAD PARA LA PREVENCION DE RIESGOS Y EL DESARROLLO DE CAPACIDADES - ESPACIOS COMUNITARIOS\n",null,null,null,null,null,null,null,null,null,null,null,null,null,null,null,null,null,null,null,null,null,null,null,"F15.XX.XXX","DD/MM/AAAA"]
[null,null,null,null,null,null,null,null,null,null,null,null,null,null,null,null,null,null,null,null,null,null,null,null,null,null,null,null,"Versión ","Página 4 de 4"]
[null,null,null,null,null,null,null,null,null,null,null,null,null,null,null,null,null,null,null,null,null,null,null,null,null,null,null,null,"Clasificación de la Información:\nClasificada"]
[null,"No.","NOMBRE DE QUIÉN RELACIONA LA INFORMACIÓN","CARGO DE QUIÉN RELACIONA LA INFORMACIÓN","¿ ES OPERADOR ?","¿ ES TALENTO HUMANO?","5. FECHA DEL REPORTE \n(dd/mm/aaaa)","7. NOMBRE COMPLETO PARTICIPANTE",null,"8. TIPO DE DOCUMENTO","8.1. SI SELECCIONÓ OTRO ¿Cuál?","9. NÚMERO DE DOCUMENTO","10. FECHA DE NACIMIENTO\n(dd/mm/aaaa)","11. EDAD\n(con respecto a la fecha de nacimiento)","12. SEXO","13. MUNICIPIO","14. FECHA DEL INICIO DE LA ATENCIÓN","15. ¿QUÉ TIPO O TIPOS DE PRESUNTA VIOLENCIA SE PRESENTÓ?",null,null,null,null,null,null,"8. ¿SE ACTIVÓ LA RUTA DE ATENCIÓN?","9. SI LA RESPUESTA ANTERIOR ES SI, ¿EN CUÁL ENTIDAD O INSTITUCIÓN SE REALIZÓ LA ACTIVACIÓN DE RUTA?","10. SI LA RESPUESTA ANTERIOR ES OTRO ¿Cuál?","11. ¿SE HA REALIZADO SEGUIMIENTO DE LA SITUACIÓN EN EL MARCO DE LOS COMITÉS TÉCNICOS OPERATIVOS?","12. DESCRIBA DE FORMA DETALLADA LAS ACCIONES REALIZADAS ","13. OBSERVACIONES ADICIONALES QUE PUEDAN SER ÚTILES AL SUPERVISOR(A) "]
[null,null,null,null,null,null,null,null,null,null,null,null,null,null,null,null,null,"1. VIOLENCIA SEXUAL ","2. VIOLENCIA PSICOLÓGICA","3. VIOLENCIA FÍSICA","4. OMISIÓN O NEGLIGENCIA","5.RIESGO DE FEMINICIDIO","6. VIOLENCIA EN EL CONFLICTO ARMADO","7. VIOLENCIA ECONÓMICA Y PATRIMONIAL"]
[null,null,null,null,null,null,null,null,null,null,null,null,null,{"$f":"IF(ISBLANK(M6), \"0 años 0 meses y 0 días\", DATEDIF(M6,TODAY(), \"Y\") & \" años \" & DATEDIF(M6,TODAY(), \"YM\") & \" meses y \" & DATEDIF(M6,TODAY(), \"MD\") & \" días\")","v":"0 años 0 meses y 0 días"}]
[null,null,null,null,null,null,null,null,null,null,null,null,null,{"$f":"IF(ISBLANK(M7), \"0 años 0 meses y 0 días\", DATEDIF(M7,TODAY(), \"Y\") & \" años \" & DATEDIF(M7,TODAY(), \"YM\") & \" meses y \" & DATEDIF(M7,TODAY(), \"MD\") & \" días\")","v":"0 años 0 meses y 0 días"}]
[null,null,null,null,null,null,null,null,null,null,null,null,null,"0 años 0 meses y 0 días"]
[null,null,null,null,null,null,null,null,null,null,null,null,null,"0 años 0 meses y 0 días"]
[null,null,null,null,null,null,null,null,null,null,null,null,null,"0 años 0 meses y 0 días"]
[null,null,null,null,null,null,null,null,null,null,null,null,null,"0 años 0 meses y 0 días"]
[null,null,null,null,null,null,null,null,null,null,null,null,null,"0 años 0 meses y 0 días"]
[null,null,null,null,null,null,null,null,null,null,null,null,null,"0 años 0 meses y 0 días"]
[null,null,null,null,null,null,null,null,null,null,null,null,null,"0 años 0 meses y 0 días"]
[null,null,null,null,null,null,null,null,null,null,null,null,null,"0 años 0 meses y 0 días"]
[null,null,null,null,null,null,null,null,null,null,null,null,null,"0 años 0 meses y 0 días"]
[null,null,null,null,null,null,null,null,null,null,null,null,null,"0 años 0 meses y 0 días"]
[null,null,null,null,null,null,null,null,null,null,null,null,null,"0 años 0 meses y 0 días"]
[null,null,null,null,null,null,null,null,null,null,null,null,null,"0 años 0 meses y 0 días"]
[null,null,null,null,null,null,null,null,null,null,null,null,null,"0 años 0 meses y 0 días"]
[null,null,null,null,null,null,null,null,null,null,null,null,null,"0 años 0 meses y 0 días"]
[null,null,null,null,null,null,null,null,null,null,null,null,null,"0 años 0 meses y 0 días"]
[null,null,null,null,null,null,null,null,null,null,null,null,null,"0 años 0 meses y 0 días"]
[null,null,null,null,null,null,null,null,null,null,null,null,null,"0 años 0 meses y 0 días"]
[null,null,null,null,null,null,null,null,null,null,null,null,null,"0 años 0 meses y 0 días"]
[null,null,null,null,null,null,null,null,null,null,null,null,null,"0 años 0 meses y 0 días"]
[null,null,null,null,null,null,null,null,null,null,null,null,null,"0 años 0 meses y 0 días"]
[null,null,null,null,null,null,null,null,null,null,null,null,null,"0 años 0 meses y 0 días"]
[null,null,null,null,null,null,null,null,null,null,null,null,null,"0 años 0 meses y 0 días"]
[null,null,null,null,null,null,null,null,null,null,null,null,null,"0 años 0 meses y 0 días"]
[null,"¡Antes de imprimir este documento… piense en el medio ambiente!  \n     Cualquier copia impresa de este documento se considera como COPIA NO CONTROLADA.\nLOS DATOS PROPORCIONADOS SERÁN TRATADOS DE ACUERDO A LA POLÌTICA DE TRATAMIENTO DE DATOS PERSONALES DEL ICBF Y A LA LEY 1581 DE 2012"]

{"sheet":"TR","index":3,"n_rows":27,"n_cols":15,"rows_kept":27,"cut":false,"hidden":false,"merged":[]}
[]
[]
[null,"FORMA DE ATENCION",null,"TIPO DE DOCUEMNTO"]
[null,"FORTALECIMIENTO DE HABILIDADES, VOCACIONES Y TALENTOS (RECURSOS BID)",null,"REGISTRO CIVIL",null,null,null,null,null,null,null,"SEXO",null,null,"SI"]
[null,"ATRAPASUEÑOS ESPACIOS COMUNITARIOS",null,"TARJETA DE IDENTIDAD",null,"SI",null,"NATURAL",null,"HOSPITAL / CLINICA",null,"MUJER",null,null,"NO"]
[null,"EXPERIENCIAS COMUNITARIAS",null,"CEDULA DE CIUDADANIA",null,"NO",null,"VIOLENTA",null,"CENTRO O PUESTO DE SALUD",null,"HOMBRE"]
[null,"CASAS ATRAPASUEÑOS",null,"CEDULA DE EXTRANJERIA",null,null,null,"EN ESTUDIO",null,"CASA / DOMICILIO",null,"INTERSEX"]
[null,null,null,"PASAPORTES ",null,null,null,"SIN INFORMACION",null,"DURANTE EL ENCUNTRO ",null,"OTRO"]
[null,null,null,"PERMISO ESPECIAL DE PERMANENCIA (PEP)",null,null,null,null,null,"EN EL LUGAR DONDE ESTUDIA"]
[null,null,null,"NO TIENE ",null,null,null,null,null,"LUGAR DE TRABAJO"]
[null,null,null,"SIN INFORMACION ",null,null,null,null,null,"VIA PUBLICA"]
[null,null,null,"OTRO",null,null,null,null,null,"OTRO"]
[null,null,null,null,null,null,null,null,null,"SIN INFORMACION"]
[null,"TIPO DE ACCIDENTE",null,"EN QUE LUGAR SE PRESENTO EL ACCIDENTE?",null,"ENTIDAD O INSTITUCIÓN REALIZÓ LA ACTIVACIÓN DE RUTA"]
[null,"ASFIXIA POR OBSTRUCCIÓN EN VÍAS RESPIRATORIAS (NARIZ Y BOCA)",null,"DURANTE EL ENCUENTRO",null,"SALUD: EPS, IPS o programas y proyectos de salud de la red pública y privada"]
[null,"AHOGAMIENTO POR INMERSIÓN",null,"EN LA VIVIENDA",null,"PROTECCIÓN: Instituto Colombiano de Bienestar Familiar (Defensorías de Familia)"]
[null,"CAÍDA DE ALTURA Y DE LA PROPIA ALTURA",null,"EN UN LUGAR DEL ESPACIO PÚBLICO",null,"PROTECCIÓN:  Comisarías de Familia"]
[null,"QUEMADURAS",null,"EN EL LUGAR DONDE ESTUDIA",null,"PROTECCIÓN: Inspección de Policía"]
[null,"INTOXICACIONES",null,"EN EL LUGAR DE TRABAJO",null,"JUSTICIA: Fiscalia"]
[null,"ELECTROCUCIÓN",null,"OTRO",null,"JUSTICIA: Unidad de respuesta Inmediata -URI"]
[null,"ACCIDENTE POR GOLPE CON OBJETO CONTUNDENTE",null,"SIN INFORMACIÓN",null,"JUSTICIA: Policía Judicial"]
[null,"SÍNDROME DE MUERTE SÚBITA DEL LACTANTE (SMSL)",null,"OTRO",null,"JUSTICIA: Policía Nacional"]
[null,"HERIDA CON OBJETO CORTO PUNZANTE",null,null,null,"MINISTERIO PÚBLICO: Personería del pueblo y personerías distritales o municipales"]
[null,"ACCIDENTE POR AGRESIÓN DE UN ANIMAL",null,null,null,"MINISTERIO PÚBLICO: Procuraduría General de la Nación"]
[null,"ACCIDENTE POR MORDEDURA DE NIÑO A NIÑO",null,null,null,"AUTORIDAD TRADICIONAL"]
[null,"ACCIDENTES POR ARMA DE FUEGO",null,null,null,"OTRO"]
[null,"OTRO"]

{"sheet":"PORTADA","index":4,"n_rows":5,"n_cols":11,"rows_kept":5,"cut":false,"hidden":false,"merged":[[0,1,2,8],[2,9,2,10],[3,0,3,10],[4,0,4,10]]}
[null,"PROCESO\nPROMOCIÓN Y PREVENCIÓN\n\nFORMATO REPORTE PRESUNTOS HECHOS DE VIOLENCIA, ACCIDENTES Y FALLECIMIENTOS\nATRAPASUEÑOS - ESPACIOS COMUNITARIOS",null,null,null,null,null,null,null,"F14.GO1.MT4.PP ","2025-09-23"]
[null,null,null,null,null,null,null,null,null,"Versión 1","Página 1 de 1"]
[null,null,null,null,null,null,null,null,null,"Clasificación de la Información:\nClasificada"]
[]
["¡Antes de imprimir este documento… piense en el medio ambiente!\nCualquier copia impresa de este documento se considera como COPIA NO CONTROLADA\n LOS DATOS PROPORCIONADOS SERÁN TRATADOS DE ACUERDO A LA POLÍTICA DE TRATAMIENTO DE DATOS PERSONALES DEL ICBF Y A LA LEY 1581 DE 2012"]